Cogmind - Beta 12 *** ADVENTURER MODE // 2023.09.17 @ 21:59:39 Player: Daemos Result: Destroyed by as-44684 with Assembled Heavy Rifle Performance ------------- Evolutions (0) 0 Regions Visited (2) 400 Robots Destroyed (24) 120 Value Destroyed (449) 449 Prototype IDs (0) 0 Alien Tech Used (0) 0 Bonus (0) 0 TOTAL SCORE: 969 Bonus ------- None Cogmind --------- Core Integrity 0/250 Matter 300/300 Energy 125/125 System Corruption 0% Temperature Cool (0) Movement Core (150) Ox2 Location -10/Mines Parts ------- > --- POWER (1) -------- Light Ion Engine > --- PROPULSION (2) --- (None) > --- UTILITY (2) ------ Tractor Beam > --- WEAPON (2) ------- Light Cannon Hammer > --- INVENTORY (5) ---- Ion Engine Light Ion Engine Improved Heat Sink Peak State ------------ > --- POWER ------------ Light Ion Engine > --- PROPULSION ------- Compact Wheel Compact Wheel > --- UTILITY ---------- Small Storage Unit Signal Interpreter > --- WEAPON ----------- EM Pulse Gun Medium Laser > --- INVENTORY -------- Ion Engine Small Laser [Rating: 7] Favorites ----------- Power Ion Engine Engine Ion Engine Propulsion Compact Wheel Wheel Compact Wheel Utility Signal Interpreter Device Sensor Array Storage Small Storage Unit Processor Signal Interpreter Weapon Light Cannon Energy Gun Medium Laser Ballistic Cannon Light Cannon Impact Weapon Hammer Build | -11 -10 -10 ------- Run | Jun Mat Min Slots Evolved . | . . . Power . | . . . Propulsion . | . . . Utility . | . . . Weapon . | . . . Parts Attached 22 | 7 9 6 Power 3 | 1 1 1 Engine 3 | 1 1 1 Core . | . . . Reactor . | . . . Propulsion 6 | 2 2 2 Treads . | . . . Leg . | . . . Wheel 6 | 2 2 2 Hover . | . . . Flight . | . . . Utility 4 | 1 2 1 Device 2 | . 1 1 Storage 1 | 1 . . Processor 1 | . 1 . Hackware . | . . . Protection . | . . . Artifact . | . . . Weapon 9 | 3 4 2 Energy Gun 5 | 3 2 . Energy Cannon . | . . . Ballistic Gun . | . . . Ballistic Cannon 3 | . 2 1 Launcher . | . . . Special Weapon . | . . . Impact Weapon 1 | . . 1 Slashing Weapon . | . . . Piercing Weapon . | . . . Special Melee Weapon . | . . . Unidentified Prototypes . | . . . Parts Lost 9 | . 1 8 Power 1 | . . 1 Propulsion 4 | . . 4 Utility 2 | . . 2 Weapon 2 | . 1 1 Highest Loss Streak 5 | . 1 5 To Critical Strikes . | . . . Average Slot Usage (%) 93 | . 99 81 Engine 13 | . 14 13 Wheel 24 | . 27 17 Device 12 | . 13 11 Processor 12 | . 13 10 Energy Gun 15 | . 22 . Ballistic Cannon 11 | . 5 24 Naked Turns . | . . . Heaviest Build 12 | 12 12 12 Greatest Support 32 | 32 32 32 Greatest Overweight (x) 3 | . . 3 Average Overweight (x) . | . . . Largest Inventory Capacity 8 | 8 8 5 Average Capacity 5 | 7 5 5 Most Carried 5 | 2 5 4 Average Carried 3 | 1 3 3 Final Capacity 8 | 8 5 5 Final Carried 4 | 2 4 3 Class Distribution -------------------- 96% | Mutant 3% | Scavenger-Mutant Dominant Class ---------------- Mutant | -10/Materials Mutant | -10/Mines Resources | -11 -10 -10 ----------- Run | Jun Mat Min Matter Collected 619 | 222 113 284 Remotely 223 | . . 223 Salvage Created 741 | . 533 208 Parts 40 | . 28 12 Haulers Intercepted 2 | . 2 . Recyclers Shooed 2 | . 1 1 Parts Field Recycled . | . . . Retrieved Matter . | . . . Parts Self-Destructed . | . . . Prevented . | . . . Kills | -11 -10 -10 ------- Run | Jun Mat Min Combat Hostiles Destroyed 26 | . 11 15 Melee 6 | . . 6 Guns 11 | . 11 . Cannons 9 | . . 9 Classes Destroyed 6 | . 4 2 Hauler 2 | . 2 . Recycler 2 | . . 2 Watcher 3 | . 3 . Swarmer 9 | . 3 6 Grunt 8 | . 8 . Assembled 9 | . . 9 Best Kill Streak 6 | . 3 6 Combat Bots Only 6 | . 3 6 Max Kills in Single Turn 1 | . 1 1 Gunslinging . | . . . Exploded . | . . . Melee 1 | . . 1 Uniques/NPCs Destroyed . | . . . Combat | -11 -10 -10 -------- Run | Jun Mat Min Damage Taken 889 | . 272 617 Core 255 | . 80 175 Absorbed by Shields . | . . . Core Remaining (%) 100 | 100 . . Volleys Fired 82 | . 54 28 Largest 2 | . 2 2 Hottest 90 | . 90 70 Shots Fired 157 | . 101 56 Gun 101 | . 101 . Cannon 56 | . . 56 Launcher . | . . . Special . | . . . Kinetic 56 | . . 56 Thermal 87 | . 87 . Explosive . | . . . Electromagnetic 14 | . 14 . Robot Hit Streak 37 | . 37 6 Robot Miss Streak 2 | . 2 2 Penetration Max . | . . . Secondary Targets . | . . . Shots Hit Robots 120 | . 80 40 Core Hits 47 | . 27 20 Critical Kills . | . . . Critical Parts Destroyed 1 | . . 1 Critical Strikes 3 | . 2 1 Burn 2 | . 2 . Smash 1 | . . 1 Melee Attacks 12 | . . 12 Impact 12 | . . 12 Slashing . | . . . Piercing . | . . . Sneak Attacks . | . . . Combat Hostiles . | . . . Follow-up Attacks . | . . . Damage Inflicted 1863 | . 987 876 Guns 987 | . 987 . Cannons 558 | . . 558 Explosions . | . . . Melee 318 | . . 318 Ramming . | . . . Kinetic 558 | . . 558 Thermal 841 | . 841 . Explosive . | . . . Electromagnetic 146 | . 146 . Impact 318 | . . 318 Slashing . | . . . Piercing . | . . . Highest Corruption . | . . . Average Corruption . | . . . Corruption Purged . | . . . Corruption Blocked . | . . . Overload Shots . | . . . Overflow Damage 47 | . . 47 Projectiles . | . . . Explosions . | . . . Melee 47 | . . 47 Knockbacks 6 | . . 6 Impact . | . . . Kinetic 5 | . . 5 Secondary 1 | . . 1 Self-Inflicted Damage . | . . . Shots . | . . . Rammed . | . . . Targets Rammed . | . . . Kicked . | . . . Crushed . | . . . Highest Temperature 270 | . 270 63 Average Temperature 81 | . 103 27 Received Heat Transfer 247 | . 207 40 Effects 1 | . 1 . Interference 1 | . 1 . Siege Activations . | . . . Robots Corrupted . | . . . Combat Hostiles . | . . . Parts Fried 1 | . 1 . Impact Corruptions 4 | . . 4 Robots Melted . | . . . Combat Hostiles . | . . . Parts Melted 5 | . 5 . Heat Transferred 2367 | . 2367 . Parts Sabotaged . | . . . Parts Stolen . | . . . Parts Stripped . | . . . Power Chain Reactions . | . . . Missiles Intercepted . | . . . Alert | -11 -10 -10 ------- Run | Jun Mat Min Peak Influence 215 | . 215 137 Initial 2 | . . 2 Average 75 | . 80 79 Maximum Alert Level 1 | . 1 . Low Security (%) 99 | 100 99 100 Level 1 . | . . . Level 2 . | . . . Level 3 . | . . . Level 4 . | . . . Level 5 . | . . . High Security . | . . . Max Security . | . . . Squads Dispatched 1 | . 1 . Investigation 1 | . 1 . Extermination . | . . . Reinforcement . | . . . Assault . | . . . Garrison . | . . . Intercept . | . . . Searches Triggered . | . . . Construction Impeded . | . . . Haulers Reinforced . | . . . Active Scanning Responses . | . . . Cargo Convoy Interrupts . | . . . Stealth | -11 -10 -10 --------- Run | Jun Mat Min Distress Signals 1 | . 1 . Communications Jammed . | . . . Distress Signals . | . . . Times Spotted 49 | . 14 35 Peak Tracking Total 19 | . 3 19 Tactical Retreats 6 | . . 6 Traps | -11 -10 -10 ------- Run | Jun Mat Min Traps Triggered 2 | . 2 . Indirectly . | . . . Trap Hack Attempts . | . . . Triggered . | . . . Disarmed . | . . . Reprogrammed . | . . . Reused . | . . . Traps Extracted . | . . . Installed . | . . . Triggered . | . . . Machines | -11 -10 -10 ---------- Run | Jun Mat Min Machines Disabled 2 | . 2 . Max in Single Turn 1 | . 1 . Machines Repaired . | . . . Machines Sabotaged . | . . . Overloaded Fab Kills . | . . . Hacking | -11 -10 -10 --------- Run | Jun Mat Min Machines Accessed 9 | . 9 . Terminals 8 | . 8 . Fabricators . | . . . Repair Stations . | . . . Recycling Units 1 | . 1 . Scanalyzers . | . . . Garrison Access . | . . . Total Hacks 25 | . 25 . Successful 9 | . 9 . Failed 16 | . 16 . Catastrophic 2 | . 2 . Database Lockouts . | . . . Manual 12 | . 12 . Terminals 20 | . 20 . Fabricators . | . . . Repair Stations . | . . . Recycling Units 5 | . 5 . Scanalyzers . | . . . Garrison Access . | . . . Terminal Hacks 4 | . 4 . Branch Access Points 1 | . 1 . Alert Level 1 | . 1 . Locate Traps 2 | . 2 . Fabricator Hacks . | . . . Repair Station Hacks . | . . . Recycling Unit Hacks 1 | . 1 . Report Inventory 1 | . 1 . Scanalyzer . | . . . Garrison Access Hacks . | . . . Unauthorized Hacks 3 | . 3 . Terminals 2 | . 2 . Botnet 2 | . 2 . Fabricators . | . . . Repair Stations . | . . . Recycling Units 1 | . 1 . Mask 1 | . 1 . Scanalyzers . | . . . Garrison Access . | . . . Data Cores Recovered . | . . . Used . | . . . Hacking Detections 9 | . 9 . Full Trace Events 2 | . 2 . Feedback Events . | . . . Feedback Blocked . | . . . Robot Schematics Acquired . | . . . Robots Built . | . . . Authchips . | . . . Time . | . . . Total Robot Build Rating . | . . . Part Schematics Acquired . | . . . Parts Built . | . . . Authchips . | . . . Time . | . . . Total Part Build Rating . | . . . Parts Repaired . | . . . Time . | . . . Parts Recycled . | . . . Recycled Matter . | . . . Retrieved Matter . | . . . Retrieved Components . | . . . Parts Scanalyzed . | . . . Part Schematics Acquired . | . . . Parts Damaged . | . . . Bothacking | -11 -10 -10 ------------ Run | Jun Mat Min Used RIF Installer . | . . . Robots Hacked . | . . . Non-combat . | . . . Combat . | . . . Robot Hacks Applied . | . . . Relay Couplers Released . | . . . Fabnet Peak Effective % . | . . . Robots Rewired . | . . . Allies Hacked . | . . . Hacks Repelled . | . . . Allies | -11 -10 -10 -------- Run | Jun Mat Min Total Allies . | . . . Largest Group . | . . . Highest-Rated Group . | . . . Highest-Rated Ally . | . . . Total Orders . | . . . Ally Attacks . | . . . Total Damage . | . . . Kills . | . . . Allies Corrupted . | . . . Allies Melted . | . . . Intel | -11 -10 -10 ------- Run | Jun Mat Min Robot Analysis Total . | . . . Derelict Logs Recovered 1 | . . 1 Drone Launches . | . . . Drone Recoveries . | . . . Exploration | -11 -10 -10 ------------- Run | Jun Mat Min Turns Passed 1474 | 73 947 454 Spaces Moved 1033 | 49 714 270 Core 58 | 1 . 57 Treads . | . . . Legs . | . . . Wheels 975 | 48 714 213 Hover . | . . . Flight . | . . . Fastest Speed 50 | 50 90 50 Average Speed 99 | 98 96 107 Slowest Speed 200 | 100 100 200 Overloaded Moves . | . . . Propulsion Burnouts . | . . . Robots Hopped . | . . . Cave-ins Triggered . | . . . Exploration Rate (%) 53 | 3 98 60 Regions Visited 2 Branch Regions 1 Pre-discovered Areas . | . . . Known Exits Taken 1 | . 1 . Unknown Exits Taken 1 | 1 . . Scrap Searched 1 | . . 1 Spaces Dug . | . . . Terrain Destroyed . | . . . Melee . | . . . Projectile . | . . . AOE . | . . . Terrain Rammed . | . . . Walls Destroyed . | . . . Machines Disabled . | . . . Actions | -11 -10 -10 --------- Run | Jun Mat Min Total 1293 | 70 868 355 Wait 138 | 13 86 39 Move 1031 | 48 713 270 Hop . | . . . Pick Up 3 | 1 2 . Fast Attach 17 | 7 6 4 Attach 2 | . 1 1 Detach 1 | 1 . . Swap 3 | . 2 1 Drop 4 | . 4 . Fire 82 | . 54 28 Melee 12 | . . 12 Ram . | . . . Kick . | . . . Crush . | . . . Escape Stasis . | . . . Rewire . | . . . Trap . | . . . Miscellaneous . | . . . Route ------- -11/Junkyard -10/Materials (discovered 5 exits: *Mat x3 / *Min x2) -10/Mines (discovered 1 exit: *Mat) History --------- Turn | Location | Event 15 | -11/Junkyard | Discovered new exit (range 15) 74 | -11/Junkyard | Entered Materials 195 | -10/Materials | Discovered new exit (range 9) 202 | -10/Materials | Identified exit to Materials 266 | -10/Materials | Discovered new exit (range 7) 274 | -10/Materials | Identified exit to Mines 314 | -10/Materials | Build established: Mutant 395 | -10/Materials | Discovered exit to Mines (range 7) 584 | -10/Materials | Discovered exit to Materials (range 13) 746 | -10/Materials | Discovered exit to Materials (range 6) 1021 | -10/Materials | Entered Mines 1061 | -10/Mines | Discovered exit to Materials (range 5) 1211 | -10/Mines | Learned Materials terminal intel 1269 | -10/Mines | Lost 3 parts (2n1u) 1327 | -10/Mines | Assembled infested the area 1373 | -10/Mines | Core integrity fell below 50% 1430 | -10/Mines | Lost 5 parts (1p2n1u1w) 1464 | -10/Mines | Core integrity fell below 20% 1475 | -10/Mines | Destroyed by as-44684 with Assembled Heavy Rifle Last Messages --------------- Acquired 2 matter. Lgt. Cannon destroyed. as-00650 destroyed. Com. Wheel destroyed. as-13485 suffers critical hit (Smash). Destroyed Asb. Heavy Rifle. Destroyed Asb. Hover Unit. as-13485 system corrupted by crushing effect. as-13485 destroyed. Acquired Lgt. Ion Engine. Acquired 9 matter. Acquired 1 matter. Acquired 10 matter. as-55634 destroyed. Destroyed Asb. F-torch. as-91412 system corrupted by crushing effect. Destroyed Asb. Hover Unit. as-45684 system corrupted by crushing effect. as-45684 destroyed. as-58316 destroyed. Map ----- +----------------------------------------------------+ | | | | | | | | | | | | | | | | | | | | | | | | | | | | | ?????????????????????????????????????????????? | | ?????????????????????????????????????????????? | | ?????????????????????????????????????????????? | | ?????????????????????????????????????????????? | | ?????????????????????????????????????????????? | | ?????????????????????????????????????????????? | | ?????????????????????????????????????????????? | | ???????????????????????????????##????????????? | | ??????????????????????????????? ????????????? | | ??????????????############????? #????????????? | | ?????????????## #????? #????????????? | | ?????????# a @% #????? #????????????? | | ??????????# """ ### #????? ##???????????? | | ????????????? """ ??# #??### ##??????????? | | ?????????????# """aa???# #?## #??????????? | | ?????????????? ???# ### ##?????##### | | ????????????? ## ????# ##%% ##????# | | ?????????????# ??##????#%## % ##???# """ | | ?????????????#?????????#%%% #???# """ | | ???????????????????????##### ! #???# """ | | ???????????????????????????# ##???# | | ???????????????????????????## ##????# | | ????????????????????????????## #?????# | | ????????????????????????????## #?????## ## | | ?????????????????????????#### #??????# #? | | ????????????????????????## #??????# #? | | ????????????????????????# #??????# #? | | ????????????????????# #??????# #? | | ????????????????????# ### ## ##??????# ## | | ????????????????????????# #?#!=#???????# | | ????????????????????????## #??#%!#???????# ## | | ?????????????????????????###??##*%##??????# #? | | ?????????????????????????????## #??##### #? | | ????????????????????????????## #??# #? | | ???????????????????????????## ##??# ###### | | ???????????????????????????#| #???# #?### | +----------------------------------------------------+ Best States ------------- Heat Dissipation 25 Energy Generation 10 Energy Capacity 250 Matter Stores 300 Matter Capacity 300 Sight Range 16 Robot Scan Range 14 Terrain Scan Density 10 Resistance: KI 20 Resistance: TH 20 Resistance: EX 20 Resistance: EM 20 Resistance: I 20 Resistance: S 20 Resistance: P 20 Evasion (%) 42 Offensive Hacking 10 Item Schematics ----------------- None Robot Schematics ------------------ None Fabricated ------------ Nothing Alien Tech Used ----------------- None Achievements -------------- Use The Force Challenges ------------ None Game ------ Seed MiniProcessingProjector Manual? 0 Play Time 00:14:54 Cumulative 41.2 hours Start 2023.09.17 @ 21:36:12 End 2023.09.17 @ 21:59:39 Sessions 1 Manual Loads 0 Difficulty Adventurer Special Mode None Game No. 14 Rogue 0 Adventurer 14 Explorer 0 Win Type - Total 0 Types 0/0/0/0/0/0/0/0/0 Lore% 27 Gallery% 34 Achievement% 33 Wizard Run 0 Options --------- ASCII 0 Keyboard 0 Movement Numpad Keybinds 0 Fullscreen 1 Font 24/Smallcaps Map View 76x50 Tactical HUD 0 Map Filters NONE Filters NONE Steam 1 RUN: 8ae1067f-d224-44c9-83f0-fdc654b1c62a